Cogmind - Beta 13 @@@ ROGUE MODE // 2024.04.08 @ 21:57:13 Player: Devilhunter10 Result: Destroyed by Y-54 Guardian with Flak Gun Performance ------------- Evolutions (0) 0 Regions Visited (3) 600 Robots Destroyed (12) 60 Value Destroyed (276) 276 Prototype IDs (0) 0 Alien Tech Used (0) 0 Bonus (0) 0 TOTAL SCORE: 936 Bonus ------- None Cogmind --------- Core Integrity 0/250 Matter 290/300 Energy 100/100 System Corruption 0% Temperature Cool (12) Movement Rolling (110) Location -7/Recycling Parts ------- > --- POWER (1) -------- (None) > --- PROPULSION (2) --- Subdweller Monowheel > --- UTILITY (2) ------ Small Storage Unit Signal Interpreter > --- WEAPON (2) ------- Heavy Assault Rifle Subdweller Machine Gun > --- INVENTORY (8) ---- Improved Titanium Leg Improved Titanium Leg Scrap Engine Small Matter Pod (50) Light Armor Plating Subdweller Machine Gun Peak State ------------ > --- POWER ------------ (None) > --- PROPULSION ------- Subdweller Monowheel > --- UTILITY ---------- Small Storage Unit Signal Interpreter > --- WEAPON ----------- Heavy Assault Rifle Subdweller Machine Gun > --- INVENTORY -------- Scrap Engine Small Matter Pod Light Armor Plating Subdweller Machine Gun [Rating: 10] Favorites ----------- Power Light Ion Engine Engine Light Ion Engine Propulsion Aluminum Leg Leg Aluminum Leg Wheel Subdweller Monowheel Utility Small Storage Unit Storage Small Storage Unit Processor Signal Interpreter Weapon Assault Rifle Ballistic Gun Assault Rifle Build | -11 -10 -10 -7 ------- Run | Yrd Mat Sub Rec Slots Evolved . | . . . . Power . | . . . . Propulsion . | . . . . Utility . | . . . . Weapon . | . . . . Parts Attached 15 | 6 3 5 1 Power 2 | 1 . 1 . Engine 2 | 1 . 1 . Core . | . . . . Reactor . | . . . . Propulsion 7 | 2 2 2 1 Treads . | . . . . Leg 6 | 2 2 2 . Wheel 1 | . . . 1 Hover . | . . . . Flight . | . . . . Utility 2 | 1 1 . . Device . | . . . . Storage 1 | 1 . . . Processor 1 | . 1 . . Hackware . | . . . . Protection . | . . . . Artifact . | . . . . Weapon 4 | 2 . 2 . Energy Gun . | . . . . Energy Cannon . | . . . . Ballistic Gun 4 | 2 . 2 . Ballistic Cannon . | . . . . Launcher . | . . . . Special Weapon . | . . . . Impact Weapon . | . . . . Slashing Weapon . | . . . . Piercing Weapon . | . . . . Special Melee Weapon . | . . . . Unidentified Prototypes . | . . . . Parts Lost 6 | . . 6 . Power 2 | . . 2 . Propulsion 2 | . . 2 . Utility . | . . . . Weapon 2 | . . 2 . Highest Loss Streak 3 | . . 3 . To Critical Strikes . | . . . . Average Slot Usage (%) 92 | . 96 92 61 Engine 12 | . 14 11 . Leg 25 | . 28 24 . Storage 14 | . 14 14 14 Processor 11 | . 10 14 14 Ballistic Gun 27 | . 28 26 28 Naked Turns . | . . . . Heaviest Build 17 | 12 12 17 12 Greatest Support 20 | 20 20 20 20 Greatest Overweight (x) 3 | 3 . 3 3 Average Overweight (x) . | . . . 1 Largest Inventory Capacity 8 | 8 8 8 8 Average Capacity 7 | 7 8 8 8 Most Carried 7 | 1 4 5 7 Average Carried 3 | . 3 3 5 Final Capacity 8 | 8 8 8 8 Final Carried 7 | 1 4 4 7 Class Distribution -------------------- 100% | Mutant Dominant Class ---------------- Mutant | -10/Materials Mutant | -10/Subcaves Mutant | -7/Recycling Resources | -11 -10 -10 -7 ----------- Run | Yrd Mat Sub Rec Matter Collected 612 | 210 203 199 . Remotely . | . . . . Salvage Created 398 | . 203 195 . Parts 14 | . 9 5 . Haulers Intercepted . | . . . . Recyclers Shooed . | . . . . Parts Field Recycled . | . . . . Retrieved Matter . | . . . . Parts Self-Destructed 8 | . . 8 . Prevented . | . . . . Kills | -11 -10 -10 -7 ------- Run | Yrd Mat Sub Rec Combat Hostiles Destroyed 9 | . 5 4 . Guns 9 | . 5 4 . Classes Destroyed 5 | . 3 2 . Recycler 1 | . 1 . . Turret 2 | . . 2 . Swarmer 5 | . 3 2 . Grunt 3 | . 2 1 . Sentry 1 | . . 1 . Best Kill Streak 4 | . 4 2 . Combat Bots Only 3 | . 3 2 . Max Kills in Single Turn 1 | . 1 1 . Gunslinging . | . . . . Exploded . | . . . . Melee . | . . . . Uniques/NPCs Destroyed . | . . . . Combat | -11 -10 -10 -7 -------- Run | Yrd Mat Sub Rec Hostile Shots Fired 165 | . 39 108 18 Missed 59 | . 11 40 8 Damage Taken 1006 | . 293 631 82 Core 254 | . 74 137 43 Absorbed by Shields . | . . . . Core Remaining (%) 100 | 100 . . . Volleys Fired 50 | . 18 32 . Largest 2 | . 2 2 . Hottest 53 | . 40 53 . Shots Fired 88 | . 36 52 . Gun 88 | . 36 52 . Cannon . | . . . . Launcher . | . . . . Special . | . . . . Kinetic 88 | . 36 52 . Thermal . | . . . . Explosive . | . . . . Electromagnetic . | . . . . Robot Hit Streak 9 | . 9 9 . Robot Miss Streak 4 | . 2 4 . Penetration Max . | . . . . Secondary Targets 1 | . 1 . . Max Gunslinging Chain 1 | . 1 . . Shots Hit Robots 53 | . 22 31 . Core Hits 19 | . 10 9 . Critical Kills . | . . . . Critical Parts Destroyed 1 | . . 1 . Critical Strikes 1 | . . 1 . Destroy 1 | . . 1 . Melee Attacks . | . . . . Impact . | . . . . Slashing . | . . . . Piercing . | . . . . Sneak Attacks . | . . . . Combat Hostiles . | . . . . Follow-up Attacks . | . . . . Damage Inflicted 767 | . 308 459 . Guns 767 | . 308 459 . Cannons . | . . . . Explosions . | . . . . Melee . | . . . . Ramming . | . . . . Kinetic 767 | . 308 459 . Thermal . | . . . . Explosive . | . . . . Electromagnetic . | . . . . Impact . | . . . . Slashing . | . . . . Piercing . | . . . . Highest Corruption . | . . . . Average Corruption . | . . . . Corruption Purged . | . . . . Corruption Blocked . | . . . . Overload Shots . | . . . . Overflow Damage . | . . . . Projectiles . | . . . . Explosions . | . . . . Melee . | . . . . Knockbacks . | . . . . Impact . | . . . . Kinetic . | . . . . Secondary . | . . . . Self-Inflicted Damage . | . . . . Shots . | . . . . Rammed . | . . . . Targets Rammed . | . . . . Kicked . | . . . . Crushed . | . . . . Highest Temperature 9 | . 9 . . Average Temperature 3 | . 3 . . Received Heat Transfer 417 | . 129 258 30 Siege Activations . | . . . . Robots Corrupted . | . . . . Combat Hostiles . | . . . . Parts Fried . | . . . . Impact Corruptions . | . . . . Robots Melted . | . . . . Combat Hostiles . | . . . . Parts Melted . | . . . . Heat Transferred . | . . . . Parts Sabotaged . | . . . . Parts Stolen . | . . . . Parts Stripped . | . . . . Power Chain Reactions . | . . . . Alert | -11 -10 -10 -7 ------- Run | Yrd Mat Sub Rec Peak Influence 489 | . 140 . 489 Initial 489 | . . . 489 Average 102 | . 71 . 489 Maximum Alert Level 2 | . . . 2 Low Security (%) 91 | 100 100 . . Level 1 . | . . . . Level 2 8 | . . . 100 Level 3 . | . . . . Level 4 . | . . . . Level 5 . | . . . . High Security . | . . . . Max Security . | . . . . Squads Dispatched 1 | . 1 . . Investigation 1 | . 1 . . Extermination . | . . . . Reinforcement . | . . . . Assault . | . . . . Garrison . | . . . . Intercept . | . . . . Searches Triggered . | . . . . Construction Impeded . | . . . . Haulers Reinforced . | . . . . Active Scanning Responses . | . . . . Cargo Convoy Interrupts . | . . . . Stealth | -11 -10 -10 -7 --------- Run | Yrd Mat Sub Rec Distress Signals . | . . . . Communications Jammed . | . . . . Distress Signals . | . . . . Times Spotted 40 | . 5 34 1 Peak Tracking Total 4 | . 3 4 1 Tactical Retreats 4 | . . 4 . Traps | -11 -10 -10 -7 ------- Run | Yrd Mat Sub Rec Traps Triggered 1 | . 1 . . Indirectly . | . . . . Trap Hack Attempts . | . . . . Triggered . | . . . . Disarmed . | . . . . Reprogrammed . | . . . . Reused . | . . . . Traps Extracted . | . . . . Installed . | . . . . Triggered . | . . . . Machines | -11 -10 -10 -7 ---------- Run | Yrd Mat Sub Rec Machines Disabled 2 | . . 2 . Max in Single Turn 1 | . . 1 . Machines Repaired . | . . . . Machines Dismantled . | . . . . Machines Sabotaged . | . . . . Overloaded Fab Kills . | . . . . Hacking | -11 -10 -10 -7 --------- Run | Yrd Mat Sub Rec Machines Accessed 1 | . 1 . . Terminals 1 | . 1 . . Fabricators . | . . . . Repair Stations . | . . . . Recycling Units . | . . . . Scanalyzers . | . . . . Garrison Access . | . . . . Total Hacks 3 | . 3 . . Successful . | . . . . Failed 3 | . 3 . . Catastrophic . | . . . . Database Lockouts . | . . . . Manual 3 | . 3 . . Terminals 3 | . 3 . . Fabricators . | . . . . Repair Stations . | . . . . Recycling Units . | . . . . Scanalyzers . | . . . . Garrison Access . | . . . . Terminal Hacks . | . . . . Fabricator Hacks . | . . . . Repair Station Hacks . | . . . . Recycling Unit Hacks . | . . . . Scanalyzer . | . . . . Garrison Access Hacks . | . . . . Unauthorized Hacks . | . . . . Terminals . | . . . . Fabricators . | . . . . Repair Stations . | . . . . Recycling Units . | . . . . Scanalyzers . | . . . . Garrison Access . | . . . . Data Cores Recovered . | . . . . Used . | . . . . Hacking Detections 1 | . 1 . . Full Trace Events . | . . . . Feedback Events . | . . . . Feedback Blocked . | . . . . Robot Schematics Acquired . | . . . . Robots Built . | . . . . Authchips . | . . . . Time . | . . . . Total Robot Build Rating . | . . . . Part Schematics Acquired . | . . . . Parts Built . | . . . . Authchips . | . . . . Time . | . . . . Total Part Build Rating . | . . . . Parts Repaired . | . . . . Time . | . . . . Parts Recycled . | . . . . Recycled Matter . | . . . . Retrieved Matter . | . . . . Retrieved Components . | . . . . Parts Scanalyzed . | . . . . Part Schematics Acquired . | . . . . Parts Damaged . | . . . . Bothacking | -11 -10 -10 -7 ------------ Run | Yrd Mat Sub Rec Used RIF Installer . | . . . . Robots Hacked . | . . . . Non-combat . | . . . . Combat . | . . . . Robot Hacks Applied . | . . . . Relay Couplers Released . | . . . . Fabnet Peak Effective % . | . . . . Robots Rewired . | . . . . Allies Hacked . | . . . . Hacks Repelled . | . . . . Allies | -11 -10 -10 -7 -------- Run | Yrd Mat Sub Rec Total Allies . | . . . . Largest Group . | . . . . Highest-Rated Group . | . . . . Highest-Rated Ally . | . . . . Total Orders . | . . . . Ally Attacks . | . . . . Total Damage . | . . . . Kills . | . . . . Allies Corrupted . | . . . . Allies Melted . | . . . . Intel | -11 -10 -10 -7 ------- Run | Yrd Mat Sub Rec Robot Analysis Total . | . . . . Derelict Logs Recovered . | . . . . Drone Launches . | . . . . Drone Recoveries . | . . . . Exploration | -11 -10 -10 -7 ------------- Run | Yrd Mat Sub Rec Turns Passed 1067 | 54 611 338 64 Spaces Moved 373 | 30 111 194 38 Core 44 | 10 . 14 20 Treads . | . . . . Legs 311 | 20 111 180 . Wheels 18 | . . . 18 Hover . | . . . . Flight . | . . . . Fastest Speed 50 | 50 120 120 110 Average Speed 129 | 149 120 125 157 Slowest Speed 200 | 200 120 200 200 Overloaded Moves . | . . . . Propulsion Burnouts . | . . . . Robots Hopped . | . . . . Cave-ins Triggered . | . . . . Exploration Rate (%) 12 | 4 21 16 7 Regions Visited 3 Branch Regions 2 Pre-discovered Areas . | . . . . Known Exits Taken 2 | . 1 1 . Unknown Exits Taken 1 | 1 . . . Scrap Searched . | . . . . Spaces Dug . | . . . . Terrain Destroyed . | . . . . Melee . | . . . . Projectile . | . . . . AOE . | . . . . Terrain Rammed . | . . . . Walls Destroyed . | . . . . Machines Disabled . | . . . . Actions | -11 -10 -10 -7 --------- Run | Yrd Mat Sub Rec Total 865 | 36 551 236 42 Wait 419 | . 419 . . Move 370 | 29 110 193 38 Hop . | . . . . Pick Up 9 | 1 1 4 3 Fast Attach 8 | 6 1 1 . Attach 3 | . . 2 1 Detach . | . . . . Swap 4 | . 2 2 . Drop 2 | . . 2 . Fire 50 | . 18 32 . Melee . | . . . . Ram . | . . . . Kick . | . . . . Crush . | . . . . Escape Stasis . | . . . . Rewire . | . . . . Trap . | . . . . Miscellaneous . | . . . . Route ------- -11/Scrapyard -10/Materials -10/Subcaves -7/Recycling History --------- Turn | Location | Event 2 | -11/Scrapyard | Met Revision 17 9 | -11/Scrapyard | Discovered new exit (range 16) 55 | -11/Scrapyard | Entered Materials 305 | -10/Materials | Build established: Mutant 640 | -10/Materials | Discovered new exit (range 4) 665 | -10/Materials | Identified exit to Subcaves 666 | -10/Materials | Entered Subcaves 777 | -10/Subcaves | Core integrity fell below 50% 891 | -10/Subcaves | Discovered new exit (range 15) 894 | -10/Subcaves | Shifting Twisted Machinery released Sub. Machine Gun 926 | -10/Subcaves | Shifting Twisted Machinery released Sub. Power Source 962 | -10/Subcaves | Core integrity fell below 20% 1000 | -10/Subcaves | Lost 3 parts (1p2n) 1002 | -10/Subcaves | Identified exit to Recycling 1004 | -10/Subcaves | Entered Recycling 1005 | -7/Recycling | Joined Warlord attack on 0b10 via Recycling 1012 | -7/Recycling | Found Scrap Engine 1068 | -7/Recycling | Destroyed by Y-54 Guardian with Flak Gun Last Messages --------------- 00972_ Destroyed Autobeam. 00975_ Autobeam Turret destroyed. 00975_ Machine disabled. 00990_ Acquired 24 matter. 00993_ Subatomizers dissect the Sub. Power Source. 00994_ Acquired 10 matter. 01002_ EXIT=IDENTIFIED: RECYCLING A mysterious object appears at your location! LOCATION=RECYCLING GOAL=ESCAPE 01005_ AM-FUU(g): "Hey, more reinforcements! Just in time, fall in with us. Squad C will strike the factory from cave 17 first to pull them in that direction, then we hit them from behind. Then God M*bzzt*... right, can't talk about that." 01012_ Acquired Scrap Engine. 01056_ Acquired Imp. Titanium Leg. 01064_ Y-54 Guardian springs to life. Map ----- +----------------------------------------------------+ | ?????????????????????????????????? | | ?????????????????????????????????? | | ?????????????????????????????????? | | ?????????????????????????????????? | | ?????????????????????????????????? | | ?#####???????????????????????????? | | ?# #???????????????????????????? | | ?# #???????????????????????????? | | ?# #???????????????????????????? | | ?# #???????????????????????????? | | ?# #???????????????????????????? | | ?# + ??????????????????????????? | | ?# # ?????????????????????????? | | ?# # ????????????????????????? | | ?# #? ??????????????????????? | | ?# #? ?????????????????????? | | ?# #??#####????????????????????? | | ?# #???????????????????????????? | | ?# #???????????????????????????? | | ?# #???????????????????????????? | | ?# #??#####????????????????????? | | ?# #??#== #??##????????????????? | | ?# ####= ### ##########???????? | | ?# Y #???????? | | ?# r + ????? | | ?# @ r #???????? | | ?## #!!!##########+### #???????? | | ??# #!!!#??????????????????????? | | ??# #####??????????????????????? | | ??# #??????????????????????????? | | ??# ??????????????????????????? | | ??# ??????????????????????????? | | ??## ?????????????????????????? | | ???# ?????????????????????????? | | ???# ?????????????????????????? | | ???# ????????????????????????? | | ???# ####????????????????????????? | | ???? ????????????????????????????? | | ???? ????????????????????????????? | | ???? ????????????????????????????? | | ?????????????????????????????????? | | ?????????????????????????????????? | | ?????????????????????????????????? | | ?????????????????????????????????? | | ?????????????????????????????????? | | ?????????????????????????????????? | | ?????????????????????????????????? | | ?????????????????????????????????? | | ?????????????????????????????????? | | ?????????????????????????????????? | +----------------------------------------------------+ Best States ------------- Heat Dissipation 25 Energy Generation 10 Energy Capacity 250 Matter Stores 300 Matter Capacity 300 Sight Range 16 Terrain Scan Density 10 Evasion (%) 55 Item Schematics ----------------- None Robot Schematics ------------------ None Fabricated ------------ Nothing Alien Tech Used ----------------- None Achievements -------------- None Challenges ------------ None Game ------ Seed FissionSpreadDetonator Manual? 0 Play Time 00:06:33 Cumulative 14.6 hours Start 2024.04.08 @ 21:51:14 End 2024.04.08 @ 21:57:13 Sessions 1 Manual Loads 0 Difficulty Rogue Special Mode None Game No. 30 Rogue 30 Adventurer 0 Explorer 0 Win Type - Total 0 Types 0/0/0/0/0/0/0/0/0 Lore% 20 Gallery% 28 Achievement% 22 Wizard Run 0 Options --------- Layout 1 ASCII 0 Keyboard 0 Movement Numpad Keybinds 0 Fullscreen 2 Font 24/Terminus Map View 50x35 Zoom Use 0% Tactical HUD 1 Map Filters NONE Filters NONE Steam 1 RUN: f7d9f329-7f05-431d-9119-c372fa557b10